[Event "Titled Tuesday Blitz July 18 Late 2023"]
[White "Bibasa, Bob"]
[Black "Garmendiarov"]
[WhiteFideId "10000240"]
[WhiteElo "2430"]
[BlackElo "2309"]
[Result "1-0"]
[Round "10"]
[TimeControl "180+2"]
[Date "2023.07.18"]
[WhiteClock "0:01:14"]
[BlackClock "0:00:00"]
[Board "83"]

1. e4 {[%clk 0:03:00]}  c5 {[%clk 0:03:00]} 2. Ne2 {[%clk 0:02:59]}  d6 {[%clk 0:02:57]} 3. d4 {[%clk 0:02:59]}  cxd4 {[%clk 0:02:57]} 4. Nxd4 {[%clk 0:02:59]}  Nf6 {[%clk 0:02:57]} 5. f3 {[%clk 0:03:00]}  e5 {[%clk 0:02:56]} 6. Nb3 {[%clk 0:03:00]}  d5 {[%clk 0:02:57]} 7. Bg5 {[%clk 0:03:00]}  Be6 {[%clk 0:02:55]} 8. Bxf6 {[%clk 0:03:00]}  gxf6 {[%clk 0:02:55]} 9. exd5 {[%clk 0:03:00]}  Qxd5 {[%clk 0:02:54]} 10. Qxd5 {[%clk 0:03:00]}  Bxd5 {[%clk 0:02:55]} 11. Nc3 {[%clk 0:03:01]}  Be6 {[%clk 0:02:51]} 12. O-O-O {[%clk 0:03:01]}  Nc6 {[%clk 0:02:48]} 13. Bb5 {[%clk 0:03:01]}  Bh6+ {[%clk 0:02:31]} 14. Kb1 {[%clk 0:03:01]}  Kf8 {[%clk 0:02:31]} 15. Ne4 {[%clk 0:02:56]}  a6 {[%clk 0:02:17]} 16. Bxc6 {[%clk 0:02:54]}  bxc6 {[%clk 0:02:18]} 17. Nxf6 {[%clk 0:02:55]}  Ke7 {[%clk 0:02:12]} 18. Ne4 {[%clk 0:02:55]}  Rhg8 {[%clk 0:02:09]} 19. g4 {[%clk 0:02:45]}  f5 {[%clk 0:02:01]} 20. gxf5 {[%clk 0:02:42]}  Bxf5 {[%clk 0:02:01]} 21. Rhe1 {[%clk 0:02:41]}  Bf4 {[%clk 0:01:50]} 22. Ng3 {[%clk 0:02:32]}  Be6 {[%clk 0:01:27]} 23. Nc5 {[%clk 0:02:27]}  Bd5 {[%clk 0:01:21]} 24. Nge4 {[%clk 0:02:10]}  Rg2 {[%clk 0:01:02]} 25. c4 {[%clk 0:02:02]}  Rb8 {[%clk 0:00:51]} 26. b3 {[%clk 0:02:00]}  Bxe4+ {[%clk 0:00:27]} 27. Rxe4 {[%clk 0:01:56]}  Rxh2 {[%clk 0:00:14]} 28. Rd7+ {[%clk 0:01:43]}  Kf6 {[%clk 0:00:13]} 29. Nd3 {[%clk 0:01:41]}  Ke6 {[%clk 0:00:11]} 30. Ra7 {[%clk 0:01:37]}  Kf5 {[%clk 0:00:09]} 31. Nxf4 {[%clk 0:01:37]}  exf4 {[%clk 0:00:09]} 32. Rxa6 {[%clk 0:01:36]}  Rd8 {[%clk 0:00:09]} 33. Re1 {[%clk 0:01:32]}  Rdd2 {[%clk 0:00:09]} 34. Ka1 {[%clk 0:01:30]}  Rdf2 {[%clk 0:00:07]} 35. Ra5+ {[%clk 0:01:27]}  Kf6 {[%clk 0:00:07]} 36. b4 {[%clk 0:01:25]}  h5 {[%clk 0:00:07]} 37. b5 {[%clk 0:01:18]}  cxb5 {[%clk 0:00:08]} 38. cxb5 {[%clk 0:01:18]}  h4 {[%clk 0:00:07]} 39. b6 {[%clk 0:01:15]}  Rb2 {[%clk 0:00:07]} 40. Rb1 {[%clk 0:01:15]}  Rxb1+ {[%clk 0:00:05]} 41. Kxb1 {[%clk 0:01:16]}  h3 {[%clk 0:00:05]} 42. b7 {[%clk 0:01:15]}  Rh1+ {[%clk 0:00:05]} 43. Kb2 {[%clk 0:01:15]}  h2 {[%clk 0:00:06]} 44. b8=Q {[%clk 0:01:15]}  Rb1+ {[%clk 0:00:03]} 45. Kxb1 {[%clk 0:01:16]}  h1=Q+ {[%clk 0:00:04]} 46. Kb2 {[%clk 0:01:15]}  Qg2+ {[%clk 0:00:05]} 47. Ka3 {[%clk 0:01:15]}  Qxf3+ {[%clk 0:00:00]} 48. Qb3 {[%clk 0:01:14]} 1-0


[Site "https://www.chess.com"]

[Event "Titled Tuesday Blitz July 18 Late 2023"]
[White "Ortega Ruiz, Jose Miguel"]
[Black "Oro, Faustino"]
[WhiteFideId "2209713"]
[BlackFideId "20000197"]
[WhiteElo "2357"]
[BlackElo "2728"]
[Result "0-1"]
[Round "10"]
[TimeControl "180+2"]
[Date "2023.07.18"]
[WhiteClock "0:01:16"]
[BlackClock "0:00:50"]
[Board "85"]

1. e4 {[%clk 0:03:00]}  e5 {[%clk 0:02:56]} 2. Nf3 {[%clk 0:03:00]}  Nc6 {[%clk 0:02:54]} 3. Nc3 {[%clk 0:03:01]}  Nf6 {[%clk 0:02:53]} 4. Nxe5 {[%clk 0:03:01]}  Nxe5 {[%clk 0:02:52]} 5. d4 {[%clk 0:03:02]}  Ng6 {[%clk 0:02:45]} 6. e5 {[%clk 0:03:02]}  Ng8 {[%clk 0:02:36]} 7. Bc4 {[%clk 0:03:02]}  d6 {[%clk 0:02:29]} 8. Qf3 {[%clk 0:03:01]}  Qd7 {[%clk 0:02:21]} 9. O-O {[%clk 0:02:35]}  Qf5 {[%clk 0:01:45]} 10. Qg3 {[%clk 0:02:23]}  dxe5 {[%clk 0:01:37]} 11. Nb5 {[%clk 0:02:13]}  Bd6 {[%clk 0:01:30]} 12. Re1 {[%clk 0:02:08]}  N8e7 {[%clk 0:01:21]} 13. dxe5 {[%clk 0:01:40]}  Nxe5 {[%clk 0:01:10]} 14. Nxd6+ {[%clk 0:01:38]}  cxd6 {[%clk 0:01:10]} 15. Bb5+ {[%clk 0:01:38]}  Bd7 {[%clk 0:01:08]} 16. Bxd7+ {[%clk 0:01:33]}  Qxd7 {[%clk 0:01:07]} 17. f4 {[%clk 0:01:30]}  N5c6 {[%clk 0:01:04]} 18. Qxg7 {[%clk 0:01:28]}  O-O-O {[%clk 0:01:04]} 19. Be3 {[%clk 0:01:26]}  Nf5 {[%clk 0:01:00]} 20. Qc3 {[%clk 0:01:27]}  Nxe3 {[%clk 0:01:00]} 21. Rxe3 {[%clk 0:01:27]}  Rhg8 {[%clk 0:00:56]} 22. Rd1 {[%clk 0:01:21]}  Qg4 {[%clk 0:00:52]} 23. Rf3 {[%clk 0:01:16]}  Qxg2# {[%clk 0:00:50]} 0-1


[Site "https://www.chess.com"]

[Event "Titled Tuesday Blitz July 18 Late 2023"]
[White "Rodriguez Santiago, Jaime"]
[Black "Berezin, Viktor"]
[WhiteFideId "3100898"]
[BlackFideId "14107872"]
[WhiteElo "2353"]
[BlackElo "2496"]
[Result "0-1"]
[Round "10"]
[TimeControl "180+2"]
[Date "2023.07.18"]
[WhiteClock "0:00:04"]
[BlackClock "0:00:15"]
[Board "86"]

1. c4 {[%clk 0:03:00]}  Nf6 {[%clk 0:02:54]} 2. d4 {[%clk 0:03:00]}  g6 {[%clk 0:02:51]} 3. Nc3 {[%clk 0:02:59]}  Bg7 {[%clk 0:02:52]} 4. e4 {[%clk 0:02:58]}  O-O {[%clk 0:02:52]} 5. Be2 {[%clk 0:02:58]}  d6 {[%clk 0:02:53]} 6. Bg5 {[%clk 0:02:58]}  c6 {[%clk 0:02:50]} 7. h4 {[%clk 0:02:56]}  h5 {[%clk 0:02:49]} 8. Nf3 {[%clk 0:02:41]}  Nbd7 {[%clk 0:02:48]} 9. Qd2 {[%clk 0:02:37]}  e5 {[%clk 0:02:45]} 10. d5 {[%clk 0:02:25]}  Qc7 {[%clk 0:02:38]} 11. Rd1 {[%clk 0:02:20]}  c5 {[%clk 0:02:34]} 12. Bh6 {[%clk 0:01:59]}  a6 {[%clk 0:02:31]} 13. Bxg7 {[%clk 0:01:58]}  Kxg7 {[%clk 0:02:32]} 14. Ng5 {[%clk 0:01:55]}  Rh8 {[%clk 0:01:59]} 15. f3 {[%clk 0:01:22]}  Qd8 {[%clk 0:01:57]} 16. a4 {[%clk 0:01:19]}  Rb8 {[%clk 0:01:49]} 17. Bd3 {[%clk 0:01:08]}  Nf8 {[%clk 0:01:48]} 18. Qe3 {[%clk 0:01:03]}  Ne8 {[%clk 0:01:46]} 19. Rd2 {[%clk 0:01:00]}  Nc7 {[%clk 0:01:41]} 20. O-O {[%clk 0:00:49]}  f6 {[%clk 0:01:35]} 21. Nh3 {[%clk 0:00:48]}  Bd7 {[%clk 0:01:27]} 22. f4 {[%clk 0:00:48]}  Nh7 {[%clk 0:01:21]} 23. f5 {[%clk 0:00:45]}  Rg8 {[%clk 0:00:55]} 24. Rdf2 {[%clk 0:00:38]}  Kh8 {[%clk 0:00:48]} 25. fxg6 {[%clk 0:00:32]}  Rxg6 {[%clk 0:00:48]} 26. Be2 {[%clk 0:00:33]}  Bg4 {[%clk 0:00:46]} 27. Bxg4 {[%clk 0:00:32]}  hxg4 {[%clk 0:00:40]} 28. h5 {[%clk 0:00:31]}  Rg8 {[%clk 0:00:40]} 29. Qh6 {[%clk 0:00:24]}  Ne8 {[%clk 0:00:34]} 30. Rxf6 {[%clk 0:00:19]}  Nxf6 {[%clk 0:00:32]} 31. Nf2 {[%clk 0:00:11]}  Qf8 {[%clk 0:00:29]} 32. Qe3 {[%clk 0:00:11]}  Qg7 {[%clk 0:00:28]} 33. Nh1 {[%clk 0:00:10]}  Nxh5 {[%clk 0:00:27]} 34. Rf5 {[%clk 0:00:09]}  Qg6 {[%clk 0:00:25]} 35. Qf2 {[%clk 0:00:07]}  Rbf8 {[%clk 0:00:25]} 36. Ne2 {[%clk 0:00:07]}  Ng7 {[%clk 0:00:22]} 37. Nhg3 {[%clk 0:00:07]}  Nxf5 {[%clk 0:00:22]} 38. exf5 {[%clk 0:00:08]}  Qg5 {[%clk 0:00:19]} 39. Nc3 {[%clk 0:00:09]}  Qh4 {[%clk 0:00:17]} 40. Nce4 {[%clk 0:00:09]}  Ng5 {[%clk 0:00:16]} 41. Qc2 {[%clk 0:00:05]}  Nf3+ {[%clk 0:00:15]} 42. gxf3 {[%clk 0:00:05]}  gxf3 {[%clk 0:00:15]} 43. Kf2 {[%clk 0:00:05]}  Qh2+ {[%clk 0:00:14]} 44. Kxf3 {[%clk 0:00:04]}  Qxc2 {[%clk 0:00:15]} 0-1


[Site "https://www.chess.com"]

[Event "Titled Tuesday Blitz July 18 Late 2023"]
[White "Barwinska, Ewa"]
[Black "Mikhalsky, Vladimir"]
[WhiteFideId "21833761"]
[BlackFideId "14144352"]
[WhiteElo "2294"]
[BlackElo "2391"]
[Result "0-1"]
[Round "10"]
[TimeControl "180+2"]
[Date "2023.07.18"]
[WhiteClock "0:00:18"]
[BlackClock "0:01:08"]
[Board "89"]

1. e4 {[%clk 0:03:00]}  g6 {[%clk 0:02:53]} 2. d4 {[%clk 0:02:59]}  Bg7 {[%clk 0:02:53]} 3. Nc3 {[%clk 0:02:59]}  d6 {[%clk 0:02:53]} 4. f4 {[%clk 0:03:00]}  Nf6 {[%clk 0:02:53]} 5. Nf3 {[%clk 0:03:00]}  c5 {[%clk 0:02:51]} 6. dxc5 {[%clk 0:02:59]}  Qa5 {[%clk 0:02:50]} 7. Bd2 {[%clk 0:02:37]}  Qxc5 {[%clk 0:02:49]} 8. Bd3 {[%clk 0:02:37]}  Bg4 {[%clk 0:02:48]} 9. Qe2 {[%clk 0:02:35]}  Nc6 {[%clk 0:02:47]} 10. Qf2 {[%clk 0:02:33]}  Bxf3 {[%clk 0:02:39]} 11. gxf3 {[%clk 0:02:23]}  Qxf2+ {[%clk 0:02:37]} 12. Kxf2 {[%clk 0:02:24]}  a6 {[%clk 0:02:28]} 13. a4 {[%clk 0:01:57]}  Nb4 {[%clk 0:02:26]} 14. Ke3 {[%clk 0:01:52]}  Bh6 {[%clk 0:02:22]} 15. Ne2 {[%clk 0:01:48]}  Nxd3 {[%clk 0:02:16]} 16. cxd3 {[%clk 0:01:49]}  Nh5 {[%clk 0:02:11]} 17. Kd4 {[%clk 0:01:12]}  e5+ {[%clk 0:02:01]} 18. Kd5 {[%clk 0:01:13]}  Kd7 {[%clk 0:01:53]} 19. Bb4 {[%clk 0:00:47]}  Bxf4 {[%clk 0:01:47]} 20. d4 {[%clk 0:00:35]}  Rhc8 {[%clk 0:01:28]} 21. dxe5 {[%clk 0:00:27]}  Bxe5 {[%clk 0:01:15]} 22. Bxd6 {[%clk 0:00:20]}  Bxd6 {[%clk 0:01:13]} 23. e5 {[%clk 0:00:19]}  Rc5+ {[%clk 0:01:11]} 24. Kd4 {[%clk 0:00:19]}  Rxe5 {[%clk 0:01:08]} 25. f4 {[%clk 0:00:18]} 0-1


[Site "https://www.chess.com"]

[Event "Titled Tuesday Blitz July 18 Late 2023"]
[White "Cooper, Aaron"]
[Black "Hoffmann, Asa"]
[WhiteFideId "2634945"]
[BlackFideId "2001470"]
[WhiteElo "2292"]
[BlackElo "2382"]
[Result "1-0"]
[Round "10"]
[TimeControl "180+2"]
[Date "2023.07.18"]
[WhiteClock "0:00:18"]
[BlackClock "0:00:04"]
[Board "90"]

1. b4 {[%clk 0:03:00]}  e5 {[%clk 0:02:58]} 2. Bb2 {[%clk 0:03:00]}  f6 {[%clk 0:02:57]} 3. b5 {[%clk 0:02:57]}  d5 {[%clk 0:02:57]} 4. e3 {[%clk 0:02:55]}  Be6 {[%clk 0:02:54]} 5. Nf3 {[%clk 0:02:45]}  Bd6 {[%clk 0:02:52]} 6. d3 {[%clk 0:02:38]}  Ne7 {[%clk 0:02:52]} 7. Nbd2 {[%clk 0:02:34]}  c5 {[%clk 0:02:51]} 8. c4 {[%clk 0:02:33]}  Nd7 {[%clk 0:02:49]} 9. Be2 {[%clk 0:02:30]}  O-O {[%clk 0:02:47]} 10. O-O {[%clk 0:02:30]}  b6 {[%clk 0:02:44]} 11. Re1 {[%clk 0:02:25]}  d4 {[%clk 0:02:43]} 12. Ne4 {[%clk 0:02:12]}  Bc7 {[%clk 0:02:40]} 13. a4 {[%clk 0:02:11]}  h6 {[%clk 0:02:39]} 14. Ned2 {[%clk 0:01:54]}  f5 {[%clk 0:02:37]} 15. Nb3 {[%clk 0:01:51]}  Nf6 {[%clk 0:02:30]} 16. exd4 {[%clk 0:01:50]}  exd4 {[%clk 0:02:26]} 17. Bf1 {[%clk 0:01:50]}  Qd6 {[%clk 0:02:25]} 18. Qd2 {[%clk 0:01:42]}  Rae8 {[%clk 0:02:23]} 19. a5 {[%clk 0:01:32]}  Ng6 {[%clk 0:02:18]} 20. g3 {[%clk 0:01:30]}  f4 {[%clk 0:02:16]} 21. Bg2 {[%clk 0:01:25]}  Bg4 {[%clk 0:02:10]} 22. axb6 {[%clk 0:01:19]}  axb6 {[%clk 0:02:10]} 23. Ra6 {[%clk 0:01:09]}  fxg3 {[%clk 0:02:06]} 24. hxg3 {[%clk 0:01:07]}  Nh5 {[%clk 0:02:04]} 25. Rxe8 {[%clk 0:01:05]}  Rxe8 {[%clk 0:02:04]} 26. Nh2 {[%clk 0:01:06]}  Re2 {[%clk 0:01:52]} 27. Qc1 {[%clk 0:00:52]}  Qe6 {[%clk 0:01:34]} 28. Bd5 {[%clk 0:00:46]}  Qxd5 {[%clk 0:01:25]} 29. cxd5 {[%clk 0:00:45]}  Bh3 {[%clk 0:01:21]} 30. Nd2 {[%clk 0:00:42]}  Nhf4 {[%clk 0:01:18]} 31. Qd1 {[%clk 0:00:26]}  Re7 {[%clk 0:00:32]} 32. d6 {[%clk 0:00:24]}  Bxd6 {[%clk 0:00:31]} 33. Rxb6 {[%clk 0:00:24]}  Nxd3 {[%clk 0:00:28]} 34. Ba3 {[%clk 0:00:22]}  Re1+ {[%clk 0:00:25]} 35. Qxe1 {[%clk 0:00:22]}  Nxe1 {[%clk 0:00:24]} 36. Rxd6 {[%clk 0:00:23]}  Ne5 {[%clk 0:00:22]} 37. b6 {[%clk 0:00:20]}  Nc2 {[%clk 0:00:18]} 38. b7 {[%clk 0:00:19]}  Nxa3 {[%clk 0:00:14]} 39. b8=Q+ {[%clk 0:00:19]}  Kh7 {[%clk 0:00:14]} 40. Ra6 {[%clk 0:00:18]}  Nc2 {[%clk 0:00:12]} 41. Qxe5 {[%clk 0:00:18]}  c4 {[%clk 0:00:04]} 42. Ra7 {[%clk 0:00:18]} 1-0


[Site "https://www.chess.com"]

[Event "Titled Tuesday Blitz July 18 Late 2023"]
[White "Womacka, Mathias"]
[Black "Osmonbekov, Talaibek"]
[WhiteFideId "4611390"]
[BlackFideId "2017253"]
[WhiteElo "2521"]
[BlackElo "2196"]
[Result "0-1"]
[Round "10"]
[TimeControl "180+2"]
[Date "2023.07.18"]
[WhiteClock "0:00:00"]
[BlackClock "0:00:24"]
[Board "93"]

1. e4 {[%clk 0:03:00]}  c5 {[%clk 0:02:58]} 2. Nf3 {[%clk 0:03:00]}  d6 {[%clk 0:02:58]} 3. d4 {[%clk 0:03:01]}  cxd4 {[%clk 0:02:59]} 4. Nxd4 {[%clk 0:03:01]}  Nf6 {[%clk 0:03:00]} 5. Nc3 {[%clk 0:03:01]}  g6 {[%clk 0:03:01]} 6. Be3 {[%clk 0:03:00]}  Bg7 {[%clk 0:03:01]} 7. f3 {[%clk 0:02:59]}  O-O {[%clk 0:03:01]} 8. Qd2 {[%clk 0:03:00]}  Nc6 {[%clk 0:03:01]} 9. O-O-O {[%clk 0:03:00]}  d5 {[%clk 0:03:01]} 10. exd5 {[%clk 0:03:01]}  Nxd5 {[%clk 0:03:00]} 11. Nxc6 {[%clk 0:03:01]}  bxc6 {[%clk 0:03:01]} 12. Bd4 {[%clk 0:03:01]}  Bxd4 {[%clk 0:02:53]} 13. Qxd4 {[%clk 0:03:00]}  Be6 {[%clk 0:02:51]} 14. Bc4 {[%clk 0:02:51]}  Qa5 {[%clk 0:02:19]} 15. Ne4 {[%clk 0:02:34]}  Rfd8 {[%clk 0:02:09]} 16. Qc5 {[%clk 0:02:25]}  Qb6 {[%clk 0:02:00]} 17. Bb3 {[%clk 0:02:04]}  f5 {[%clk 0:01:29]} 18. Qxb6 {[%clk 0:02:02]}  axb6 {[%clk 0:01:30]} 19. Ng5 {[%clk 0:02:02]}  Bf7 {[%clk 0:01:30]} 20. Nxf7 {[%clk 0:01:54]}  Kxf7 {[%clk 0:01:30]} 21. c4 {[%clk 0:01:54]}  Ne3 {[%clk 0:01:23]} 22. Rxd8 {[%clk 0:01:48]}  Rxd8 {[%clk 0:01:21]} 23. c5+ {[%clk 0:01:48]}  Kf6 {[%clk 0:01:21]} 24. cxb6 {[%clk 0:01:47]}  Rb8 {[%clk 0:01:21]} 25. g3 {[%clk 0:01:43]}  g5 {[%clk 0:01:14]} 26. Kd2 {[%clk 0:01:28]}  f4 {[%clk 0:01:13]} 27. gxf4 {[%clk 0:01:28]}  gxf4 {[%clk 0:01:14]} 28. Rg1 {[%clk 0:01:25]}  Rxb6 {[%clk 0:01:09]} 29. Rg8 {[%clk 0:01:24]}  c5 {[%clk 0:01:08]} 30. Kc3 {[%clk 0:01:09]}  c4 {[%clk 0:00:53]} 31. Bxc4 {[%clk 0:01:04]}  Nxc4 {[%clk 0:00:52]} 32. Kxc4 {[%clk 0:01:05]}  Rxb2 {[%clk 0:00:52]} 33. a4 {[%clk 0:00:56]}  Ra2 {[%clk 0:00:49]} 34. Kb3 {[%clk 0:00:49]}  Rf2 {[%clk 0:00:48]} 35. a5 {[%clk 0:00:47]}  Rxf3+ {[%clk 0:00:49]} 36. Kb4 {[%clk 0:00:48]}  Rf1 {[%clk 0:00:48]} 37. Rf8+ {[%clk 0:00:34]}  Ke5 {[%clk 0:00:47]} 38. Rf7 {[%clk 0:00:34]}  e6 {[%clk 0:00:45]} 39. Rxh7 {[%clk 0:00:33]}  f3 {[%clk 0:00:45]} 40. a6 {[%clk 0:00:32]}  f2 {[%clk 0:00:43]} 41. a7 {[%clk 0:00:14]}  Rb1+ {[%clk 0:00:42]} 42. Kc5 {[%clk 0:00:13]}  Rc1+ {[%clk 0:00:36]} 43. Kb6 {[%clk 0:00:10]}  f1=Q {[%clk 0:00:36]} 44. a8=Q {[%clk 0:00:09]}  Rb1+ {[%clk 0:00:33]} 45. Kc7 {[%clk 0:00:08]}  Qc4+ {[%clk 0:00:29]} 46. Qc6 {[%clk 0:00:05]}  Qxc6+ {[%clk 0:00:26]} 47. Kxc6 {[%clk 0:00:06]}  Rh1 {[%clk 0:00:26]} 48. h4 {[%clk 0:00:05]}  Kd4 {[%clk 0:00:24]} 49. h5 {[%clk 0:00:02]}  e5 {[%clk 0:00:24]} 50. h6 {[%clk 0:00:03]}  e4 {[%clk 0:00:24]} 51. Rd7+ {[%clk 0:00:00]}  Ke3 {[%clk 0:00:24]} 0-1


[Site "https://www.chess.com"]

[Event "Titled Tuesday Blitz July 18 Late 2023"]
[White "Prydun, Andriy"]
[Black "Seletsky, Grigory"]
[WhiteFideId "14145898"]
[BlackFideId "14112191"]
[WhiteElo "2337"]
[BlackElo "2465"]
[Result "0-1"]
[Round "10"]
[TimeControl "180+2"]
[Date "2023.07.18"]
[WhiteClock "0:00:00"]
[BlackClock "0:00:23"]
[Board "94"]

1. d4 {[%clk 0:03:00]}  d5 {[%clk 0:02:59]} 2. Nf3 {[%clk 0:02:58]}  c6 {[%clk 0:02:59]} 3. Nbd2 {[%clk 0:02:57]}  Nf6 {[%clk 0:03:00]} 4. Nb3 {[%clk 0:02:57]}  h6 {[%clk 0:03:00]} 5. Bf4 {[%clk 0:02:57]}  Bf5 {[%clk 0:03:00]} 6. e3 {[%clk 0:02:57]}  e6 {[%clk 0:03:01]} 7. Bd3 {[%clk 0:02:57]}  Bxd3 {[%clk 0:03:00]} 8. cxd3 {[%clk 0:02:57]}  Bd6 {[%clk 0:03:00]} 9. Bxd6 {[%clk 0:02:56]}  Qxd6 {[%clk 0:03:01]} 10. O-O {[%clk 0:02:56]}  O-O {[%clk 0:03:01]} 11. Ne5 {[%clk 0:02:56]}  Nbd7 {[%clk 0:03:00]} 12. f4 {[%clk 0:02:56]}  c5 {[%clk 0:03:00]} 13. Rf3 {[%clk 0:02:48]}  cxd4 {[%clk 0:02:56]} 14. exd4 {[%clk 0:02:49]}  Rac8 {[%clk 0:02:53]} 15. g4 {[%clk 0:02:46]}  Qe7 {[%clk 0:02:39]} 16. g5 {[%clk 0:02:44]}  Nxe5 {[%clk 0:02:36]} 17. fxe5 {[%clk 0:02:43]}  Nh7 {[%clk 0:02:32]} 18. gxh6 {[%clk 0:02:33]}  g6 {[%clk 0:02:31]} 19. Qd2 {[%clk 0:02:28]}  Qg5+ {[%clk 0:02:29]} 20. Qg2 {[%clk 0:02:19]}  Qxh6 {[%clk 0:02:25]} 21. Raf1 {[%clk 0:02:17]}  b6 {[%clk 0:02:21]} 22. Rh3 {[%clk 0:02:03]}  Qg7 {[%clk 0:02:05]} 23. Rg3 {[%clk 0:01:57]}  Rc7 {[%clk 0:02:04]} 24. h4 {[%clk 0:01:54]}  Rfc8 {[%clk 0:02:04]} 25. h5 {[%clk 0:01:53]}  g5 {[%clk 0:02:04]} 26. Rf2 {[%clk 0:01:41]}  Kh8 {[%clk 0:02:01]} 27. Rgf3 {[%clk 0:01:34]}  a5 {[%clk 0:02:00]} 28. Nd2 {[%clk 0:01:30]}  g4 {[%clk 0:01:49]} 29. Rg3 {[%clk 0:01:29]}  Rg8 {[%clk 0:01:40]} 30. Nf1 {[%clk 0:01:28]}  Ng5 {[%clk 0:01:33]} 31. h6 {[%clk 0:00:59]}  Qxh6 {[%clk 0:01:12]} 32. Qh1 {[%clk 0:00:18]}  Nf3+ {[%clk 0:00:52]} 33. Kg2 {[%clk 0:00:14]}  Qxh1+ {[%clk 0:00:49]} 34. Kxh1 {[%clk 0:00:14]}  Rg6 {[%clk 0:00:46]} 35. Kg2 {[%clk 0:00:09]}  Nxd4 {[%clk 0:00:44]} 36. Ne3 {[%clk 0:00:09]}  Nf3 {[%clk 0:00:40]} 37. Nxg4 {[%clk 0:00:09]}  Ne1+ {[%clk 0:00:38]} 38. Kf1 {[%clk 0:00:08]}  Nxd3 {[%clk 0:00:38]} 39. Rxd3 {[%clk 0:00:02]}  Rxg4 {[%clk 0:00:37]} 40. Rb3 {[%clk 0:00:01]}  Rc1+ {[%clk 0:00:29]} 41. Ke2 {[%clk 0:00:01]}  Rc2+ {[%clk 0:00:30]} 42. Ke1 {[%clk 0:00:02]}  Rxf2 {[%clk 0:00:30]} 43. Kxf2 {[%clk 0:00:03]}  Rb4 {[%clk 0:00:30]} 44. Rxb4 {[%clk 0:00:03]}  axb4 {[%clk 0:00:30]} 45. Ke2 {[%clk 0:00:03]}  Kg7 {[%clk 0:00:30]} 46. Kd2 {[%clk 0:00:03]}  f6 {[%clk 0:00:30]} 47. Kc2 {[%clk 0:00:04]}  fxe5 {[%clk 0:00:29]} 48. Kb3 {[%clk 0:00:05]}  e4 {[%clk 0:00:29]} 49. Kxb4 {[%clk 0:00:06]}  e3 {[%clk 0:00:28]} 50. Kc3 {[%clk 0:00:06]}  d4+ {[%clk 0:00:29]} 51. Kd3 {[%clk 0:00:07]}  Kf6 {[%clk 0:00:27]} 52. a4 {[%clk 0:00:08]}  Ke7 {[%clk 0:00:28]} 53. b4 {[%clk 0:00:09]}  Kd6 {[%clk 0:00:28]} 54. Ke2 {[%clk 0:00:04]}  e5 {[%clk 0:00:27]} 55. Kd3 {[%clk 0:00:04]}  e4+ {[%clk 0:00:26]} 56. Ke2 {[%clk 0:00:05]}  Kd5 {[%clk 0:00:25]} 57. Ke1 {[%clk 0:00:03]}  Kc4 {[%clk 0:00:24]} 58. a5 {[%clk 0:00:01]}  bxa5 {[%clk 0:00:23]} 59. bxa5 {[%clk 0:00:00]}  Kb5 {[%clk 0:00:23]} 0-1


[Site "https://www.chess.com"]

[Event "Titled Tuesday Blitz July 18 Late 2023"]
[White "Alain_Otero"]
[Black "Carrasco Miranda, Andres"]
[BlackFideId "3405990"]
[WhiteElo "2337"]
[BlackElo "2413"]
[Result "0-1"]
[Round "10"]
[TimeControl "180+2"]
[Date "2023.07.18"]
[WhiteClock "0:00:01"]
[BlackClock "0:00:43"]
[Board "95"]

1. e4 {[%clk 0:02:52]}  e5 {[%clk 0:02:59]} 2. Nf3 {[%clk 0:02:46]}  Nc6 {[%clk 0:02:59]} 3. Bb5 {[%clk 0:02:45]}  Nf6 {[%clk 0:02:58]} 4. d3 {[%clk 0:02:44]}  Bc5 {[%clk 0:02:57]} 5. Bxc6 {[%clk 0:02:40]}  dxc6 {[%clk 0:02:57]} 6. O-O {[%clk 0:02:39]}  Bd6 {[%clk 0:02:57]} 7. Nbd2 {[%clk 0:02:36]}  O-O {[%clk 0:02:56]} 8. Nc4 {[%clk 0:02:30]}  Re8 {[%clk 0:02:56]} 9. b3 {[%clk 0:02:26]}  Bg4 {[%clk 0:02:46]} 10. Bb2 {[%clk 0:02:25]}  Nd7 {[%clk 0:02:45]} 11. Ne3 {[%clk 0:02:20]}  Be6 {[%clk 0:02:41]} 12. d4 {[%clk 0:02:08]}  exd4 {[%clk 0:02:35]} 13. Nxd4 {[%clk 0:02:08]}  Qh4 {[%clk 0:02:28]} 14. g3 {[%clk 0:02:01]}  Qxe4 {[%clk 0:02:27]} 15. Nxe6 {[%clk 0:01:56]}  Qxe6 {[%clk 0:02:23]} 16. Nc4 {[%clk 0:01:46]}  Rad8 {[%clk 0:02:15]} 17. Qd2 {[%clk 0:01:05]}  Nb6 {[%clk 0:02:08]} 18. Qc3 {[%clk 0:00:59]}  Qg6 {[%clk 0:02:03]} 19. Nxd6 {[%clk 0:00:56]}  cxd6 {[%clk 0:02:00]} 20. Rfe1 {[%clk 0:00:56]}  Nd5 {[%clk 0:01:56]} 21. Qd4 {[%clk 0:00:49]}  a6 {[%clk 0:01:56]} 22. a3 {[%clk 0:00:43]}  h6 {[%clk 0:01:45]} 23. c4 {[%clk 0:00:42]}  Nc7 {[%clk 0:01:44]} 24. Qb6 {[%clk 0:00:37]}  Rxe1+ {[%clk 0:01:40]} 25. Rxe1 {[%clk 0:00:36]}  Re8 {[%clk 0:01:40]} 26. Rf1 {[%clk 0:00:13]}  Re2 {[%clk 0:01:35]} 27. Qxc7 {[%clk 0:00:09]}  Rxb2 {[%clk 0:01:35]} 28. Qxb7 {[%clk 0:00:08]}  Qd3 {[%clk 0:01:31]} 29. Qxa6 {[%clk 0:00:07]}  Rxb3 {[%clk 0:01:28]} 30. Qxc6 {[%clk 0:00:07]}  Rxa3 {[%clk 0:01:27]} 31. Qe8+ {[%clk 0:00:07]}  Kh7 {[%clk 0:01:26]} 32. Qxf7 {[%clk 0:00:07]}  Rc3 {[%clk 0:01:26]} 33. Qd5 {[%clk 0:00:06]}  Qxd5 {[%clk 0:01:23]} 34. cxd5 {[%clk 0:00:06]}  Rd3 {[%clk 0:01:23]} 35. Re1 {[%clk 0:00:05]}  Rxd5 {[%clk 0:01:23]} 36. Kg2 {[%clk 0:00:05]}  Rd2 {[%clk 0:01:22]} 37. Kf3 {[%clk 0:00:06]}  Kg6 {[%clk 0:01:22]} 38. Re6+ {[%clk 0:00:05]}  Kf5 {[%clk 0:01:22]} 39. Re7 {[%clk 0:00:05]}  Kf6 {[%clk 0:01:22]} 40. Rd7 {[%clk 0:00:05]}  g5 {[%clk 0:01:20]} 41. Ke3 {[%clk 0:00:06]}  Rd1 {[%clk 0:01:18]} 42. f4 {[%clk 0:00:05]}  g4 {[%clk 0:01:07]} 43. Ke4 {[%clk 0:00:03]}  h5 {[%clk 0:01:03]} 44. f5 {[%clk 0:00:03]}  Re1+ {[%clk 0:00:56]} 45. Kd3 {[%clk 0:00:01]}  Kxf5 {[%clk 0:00:55]} 46. Kd2 {[%clk 0:00:02]}  Re6 {[%clk 0:00:54]} 47. Rh7 {[%clk 0:00:02]}  Kg6 {[%clk 0:00:54]} 48. Rh8 {[%clk 0:00:02]}  d5 {[%clk 0:00:47]} 49. Kd3 {[%clk 0:00:02]}  Re5 {[%clk 0:00:44]} 50. Kd4 {[%clk 0:00:03]}  Re2 {[%clk 0:00:44]} 51. Kxd5 {[%clk 0:00:03]}  Rxh2 {[%clk 0:00:44]} 52. Ke4 {[%clk 0:00:03]}  Rf2 {[%clk 0:00:42]} 53. Ke3 {[%clk 0:00:03]}  Rf3+ {[%clk 0:00:42]} 54. Ke4 {[%clk 0:00:04]}  Rxg3 {[%clk 0:00:43]} 55. Rg8+ {[%clk 0:00:04]}  Kh7 {[%clk 0:00:43]} 56. Kf4 {[%clk 0:00:04]}  Kxg8 {[%clk 0:00:42]} 57. Kxg3 {[%clk 0:00:01]}  Kg7 {[%clk 0:00:43]} 0-1


[Site "https://www.chess.com"]